fUST/lending_fUST_20251124
["ID","MTS","AMOUNT","RATE_DAILY","PERIOD"]
[394775696,1763937035893,-156.940943,0.00019775,7]
[394775697,1763937035902,-156.940943,0.00019775,7]
[394775698,1763937035912,-156.940943,0.00019775,7]
[394775699,1763937035922,-156.940943,0.00019775,7]
[394775700,1763937035932,-151.0,0.00019775,7]
[394775701,1763937035941,-151.0,0.00019775,7]
[394775702,1763937035952,-156.940943,0.00019775,7]
[394775703,1763937035960,-151.0,0.00019775,7]
[394775704,1763937035969,-156.940943,0.00019775,7]
[394775705,1763937035977,-151.0,0.00019775,7]
[394775706,1763937035985,-156.940943,0.00019775,7]
[394775707,1763937035994,-156.940943,0.00019775,7]
[394775708,1763937036003,-156.940943,0.00019775,7]
[394775709,1763937036012,-156.940943,0.00019775,7]
[394775710,1763937036020,-151.0,0.00019775,7]
[394775711,1763937036029,-151.0,0.00019775,7]
[394775712,1763937036038,-151.0,0.00019775,7]
[394775713,1763937036046,-151.0,0.00019775,7]
[394775714,1763937036055,-151.0,0.00019775,7]
[394775715,1763937036064,-151.0,0.00019775,7]
[394775716,1763937036073,-151.0,0.00019775,7]
[394775717,1763937036082,-151.0,0.00019775,7]
[394775718,1763937036096,-151.0,0.00019775,7]
[394775719,1763937036106,-151.0,0.00019775,7]
[394775720,1763937036115,-151.0,0.00019775,7]
[394775721,1763937036124,-151.0,0.00019775,7]
[394775722,1763937036135,-155.071752,0.00019775,7]
[394775723,1763937036143,-151.0,0.00019775,7]
[394775724,1763937036152,-151.0,0.00019775,7]
[394775725,1763937036162,-151.0,0.00019775,7]
[394775726,1763937036172,-151.0,0.00019775,7]
[394775727,1763937036182,-151.0,0.00019775,7]
[394775728,1763937036190,-151.0,0.00019775,7]
[394775729,1763937036199,-263.571072,0.00019775,7]
[394775730,1763937036208,-151.0,0.00019775,7]
[394775731,1763937036217,-151.0,0.00019775,7]
[394775732,1763937036226,-151.0,0.00019775,7]
[394775733,1763937036235,-151.0,0.00019775,7]
[394775734,1763937036244,-151.0,0.00019775,7]
[394775735,1763937036254,-151.0,0.00019775,7]
[394775736,1763937036265,-151.0,0.00019775,7]
[394775737,1763937036276,-151.0,0.00019775,7]
[394775738,1763937036288,-187.409336,0.00019775,7]
[394775739,1763937036298,-151.0,0.00019775,7]
[394775740,1763937036307,-151.0,0.00019775,7]
[394775741,1763937036316,-151.0,0.00019775,7]
[394775742,1763937036325,-151.0,0.00019775,7]
[394775743,1763937036334,-151.0,0.00019775,7]
[394775744,1763937036343,-151.0,0.00019775,7]
[394775745,1763937036352,-270.311458,0.00019775,7]
[394775746,1763937036361,-151.0,0.00019775,7]
[394775747,1763937036370,-151.0,0.00019775,7]
[394775748,1763937036379,-151.0,0.00019775,7]
[394775749,1763937036389,-151.0,0.00019775,7]
[394775750,1763937036398,-151.0,0.00019775,7]
[394775751,1763937036407,-151.0,0.00019775,7]
[394775752,1763937036416,-151.0,0.00019775,7]
[394775753,1763937036426,-151.0,0.00019775,7]
[394775754,1763937036435,-177.2544,0.00019775,7]
[394775755,1763937036444,-177.2544,0.00019775,7]
[394775756,1763937036453,-177.2544,0.00019775,7]
[394775757,1763937036463,-177.2544,0.00019775,7]
[394775758,1763937036472,-177.2544,0.00019775,7]
[394775759,1763937036481,-177.2544,0.00019775,7]
[394775760,1763937036490,-177.2544,0.00019775,7]
[394775761,1763937036499,-177.2544,0.00019775,7]
[394775762,1763937036508,-177.2544,0.00019775,7]
[394775763,1763937036517,-177.2544,0.00019775,7]
[394775764,1763937036526,-177.2544,0.00019775,7]
[394775765,1763937036536,-177.2544,0.00019775,7]
[394775766,1763937036545,-177.2544,0.00019775,7]
[394775767,1763937036554,-177.2544,0.00019775,7]
[394775768,1763937036563,-177.2544,0.00019775,7]
[394775769,1763937036572,-177.2544,0.00019775,7]
[394775770,1763937036581,-151.0,0.00019775,7]
[394775771,1763937036590,-151.0,0.00019775,7]
[394775772,1763937036601,-151.0,0.00019775,7]
[394775773,1763937036611,-151.0,0.00019775,7]
[394775774,1763937036620,-151.0,0.00019775,7]
[394775775,1763937036630,-151.0,0.00019775,7]
[394775776,1763937036640,-151.0,0.00019775,7]
[394775777,1763937036649,-151.0,0.00019775,7]
[394775778,1763937036658,-211.667936,0.00019775,7]
[394775779,1763937036667,-151.821289,0.00019775,7]
[394775780,1763937036677,-151.0,0.00019775,7]
[394775781,1763937036687,-151.0,0.00019775,7]
[394775782,1763937036696,-151.0,0.00019775,7]
[394775783,1763937036706,-151.0,0.00019775,7]
[394775784,1763937036715,-151.0,0.00019775,7]
[394775785,1763937036724,-151.0,0.00019775,7]
[394775786,1763937036733,-151.0,0.00019775,7]
[394775787,1763937036743,-269.478417,0.00019775,7]
[394775788,1763937036752,-1831.07,0.00019775,2]
[394775789,1763937036761,-1831.07,0.00019775,2]
[394775790,1763937036771,-1831.07,0.00019775,2]
[394775791,1763937036780,-1831.07,0.00019775,2]
[394775792,1763937036789,-1831.07,0.00019775,2]
[394775793,1763937036798,-1831.07,0.00019775,2]
[394775794,1763937036807,-1831.07,0.00019775,2]
[394775795,1763937036816,-1831.07,0.00019775,2]
[394775796,1763937036825,-1831.07,0.00019775,2]
[394775797,1763937036834,-1831.07,0.00019775,2]
[394775798,1763937036843,-1831.07,0.00019775,2]
[394775799,1763937036854,-1831.07,0.00019775,2]
[394775800,1763937036863,-1831.07,0.00019775,2]
[394775801,1763937036872,-1831.07,0.00019775,2]
[394775802,1763937036883,-1831.07,0.00019775,2]
[394775803,1763937036893,-1831.07,0.00019775,2]
[394775804,1763937036903,-1831.07,0.00019775,2]
[394775805,1763937036912,-1831.07,0.00019775,2]
[394775806,1763937036922,-1831.09,0.00019775,2]
[394775807,1763937036931,-151.0,0.00019775,7]
[394775808,1763937036940,-151.0,0.00019775,7]
[394775809,1763937036949,-500.0,0.00019785,2]
[394775810,1763937036958,-500.0,0.00019874,2]
[394775811,1763937036967,-500.0,0.00019875,2]
[394775812,1763937036976,-503.28369216,0.00019883,2]
[394775813,1763937036985,-500.0,0.00019883,2]
[394775814,1763937036995,-500.0,0.00019883,2]
[394775815,1763937037006,-500.0,0.00019883,2]
[394775816,1763937037016,-500.0,0.00019883,2]
[394775817,1763937037028,-501.64472652,0.00019883,2]
[394775818,1763937037038,-500.0,0.00019883,2]
[394775819,1763937037047,-500.0,0.00019883,2]
[394775820,1763937037056,-500.0,0.00019883,2]
[394775821,1763937037065,-493.08425971,0.00019883,2]
[394775822,1763937037075,-500.0,0.00019883,2]
[394775823,1763937037088,-500.0,0.00019883,2]
[394775824,1763937037099,-500.0,0.00019883,2]
[394775825,1763937037107,-500.0,0.00019883,2]
[394775826,1763937037116,-306.30160762,0.00019883,2]
[394775827,1763937037127,-500.0,0.00019883,2]
[394775828,1763937037136,-500.0,0.00019883,2]
[394775829,1763937037146,-500.0,0.00019883,2]
[394775830,1763937037155,-634.05948752,0.00019883,2]
[394775831,1763937037166,-521.59858022,0.00019883,2]
[394775832,1763937037175,-500.0,0.00019883,2]
[394775833,1763937037185,-501.76836763,0.00019883,2]
[394775834,1763937037195,-500.0,0.00019883,2]
[394775835,1763937037204,-500.0,0.00019883,2]
[394775836,1763937037214,-501.10006118,0.00019883,2]
[394775837,1763937037222,-507.64775567,0.00019883,2]
[394775838,1763937037232,-500.0,0.00019883,2]
[394775839,1763937037241,-500.0,0.00019883,2]
[394775840,1763937037250,-500.0,0.00019883,2]
[394775841,1763937037260,-500.0,0.00019883,2]
[394775842,1763937037269,-500.0,0.00019883,2]
[394775843,1763937037278,-582.6274827,0.00019883,2]
[394775844,1763937037287,-7321.59149812,0.00019951,2]
[394775845,1763937037296,-151.0,0.00019968,7]
[394775846,1763937037305,-151.0,0.00019968,7]
[394775847,1763937037314,-151.0,0.00019968,7]
[394775848,1763937037324,-151.0,0.00019968,7]
[394775849,1763937037334,-151.0,0.00019968,7]
[394775850,1763937037344,-156.940943,0.00019968,7]
[394775851,1763937037355,-156.940943,0.00019968,7]
[394775852,1763937037364,-156.940943,0.00019968,7]
[394775853,1763937037374,-156.940943,0.00019968,7]
[394775854,1763937037383,-914.92008594,0.00019968,2]
[394775855,1763937037392,-590.66952573,0.00019968,2]
[394775856,1763937037401,-1500.0,0.00019968,2]
[394775857,1763937037411,-1006.80097054,0.00019968,2]
[394775858,1763937037420,-1501.67009495,0.00019968,2]
[394775859,1763937037429,-151.0,0.00019989,7]
[394775860,1763937037438,-151.0,0.00019989,7]
[394775861,1763937037447,-151.0,0.00019989,7]
[394775862,1763937037456,-151.0,0.00019989,7]
[394775863,1763937037466,-151.0,0.00019989,7]
[394775864,1763937037476,-151.0,0.00019989,7]
[394775865,1763937037485,-209.30665,0.00019989,7]
[394775866,1763937037495,-209.30665,0.00019989,7]
[394775867,1763937037505,-209.30665,0.00019989,7]
[394775869,1763937037515,-209.30665,0.00019989,7]
[394775879,1763937037687,-151.0,0.00019989,7]
[394775880,1763937037696,-151.0,0.00019989,7]
[394775881,1763937037706,-151.0,0.00019989,7]
[394775882,1763937037715,-151.0,0.00019989,7]
[394775883,1763937037724,-166.0,0.0002,2]
[394775884,1763937037733,-166.0,0.0002,2]
[394775885,1763937037743,-166.0,0.0002,2]
[394775886,1763937037752,-166.0,0.0002,2]
[394775887,1763937037761,-166.0,0.0002,2]
[394775888,1763937037770,-166.0,0.0002,2]
[394775889,1763937037779,-166.0,0.0002,2]
[394775890,1763937037788,-166.0,0.0002,2]
[394775891,1763937037797,-171.70036677,0.0002,2]
[394775892,1763937037807,-151.0,0.0002,7]
[394775893,1763937037815,-151.94186312,0.00020058,2]
[394775894,1763937037825,-151.0,0.00020058,2]
[394775896,1763937037834,-2500.0,0.00020064,2]
[394775897,1763937037843,-2500.0,0.00020064,2]
[394775899,1763937037853,-462.90605611,0.00020148,2]
[394775901,1763937037862,-2541.08475044,0.00020148,2]
[394775903,1763937037871,-151.0,0.00020195,2]
[394775905,1763937037880,-151.0,0.00020332,2]
[394775907,1763937037889,-334.703,0.00020401,2]
[394775909,1763937037899,-1000.0,0.00020431,2]
[394775911,1763937037908,-1000.0,0.00020431,2]
[394775913,1763937037919,-1000.0,0.00020431,2]
[394775915,1763937037928,-565.17355242,0.00020431,2]
[394775917,1763937037937,-1000.0,0.00020431,2]
[394775919,1763937037946,-1000.0,0.00020431,2]
[394775921,1763937037955,-1000.0,0.00020431,2]
[394775923,1763937037964,-518.49858539,0.00020431,2]
[394775925,1763937037973,-687.68684068,0.00020431,2]
[394775927,1763937037983,-626.42616999,0.00020431,2]
[394775929,1763937037992,-1000.0,0.00020431,2]
[394775931,1763937038001,-500.0,0.00020431,2]
[394775933,1763937038010,-1009.33725645,0.00020431,2]
[394775935,1763937038019,-1000.0,0.00020431,2]
[394775937,1763937038029,-1000.0,0.00020431,2]
[394775939,1763937038038,-633.13153348,0.00020431,2]
[394775941,1763937038047,-151.0,0.00020469,2]
[394775943,1763937038056,-523.53108358,0.00020516,2]
[394775945,1763937038066,-151.0,0.00020606,2]
[394775947,1763937038075,-946.31080594,0.00020612,2]
[394775949,1763937038085,-3000.0,0.00020612,2]
[394775951,1763937038098,-500.70711121,0.00020656,2]
[394775953,1763937038108,-500.0,0.00020656,2]
[394775955,1763937038117,-500.0,0.00020656,2]
[394775957,1763937038127,-509.93100257,0.00020656,2]
[394775959,1763937038136,-500.0,0.00020656,2]
[394775961,1763937038146,-500.0,0.00020656,2]
[394775963,1763937038154,-500.0,0.00020656,2]
[394775965,1763937038164,-500.0,0.00020656,2]
[394775967,1763937038174,-151.84,0.00020683,2]
[394775969,1763937038183,-188.0,0.00020743,2]
[394775971,1763937038192,-151.0,0.00020769,7]
[394775973,1763937038202,-151.0,0.00020769,7]
[394775975,1763937038211,-151.0,0.00020769,7]
[394775977,1763937038220,-151.0,0.00020769,7]
[394775979,1763937038229,-151.0,0.00020769,7]
[394775981,1763937038240,-151.0,0.00020769,7]
[394775983,1763937038249,-195.268374,0.00020769,7]
[394775985,1763937038259,-1015.07950018,0.00020979,2]
[394775987,1763937038268,-1500.0,0.00020979,2]
[394775989,1763937038279,-1426.70166481,0.00020979,2]
[394775991,1763937038289,-517.13190715,0.00020979,2]
[394775993,1763937038298,-216.01805711,0.00020979,2]
[394775995,1763937038308,-1500.0,0.00020979,2]
[394775997,1763937038318,-1500.0,0.00020979,2]
[394775999,1763937038328,-1500.0,0.00020979,2]
[394776001,1763937038337,-1500.0,0.00020979,2]
[394776003,1763937038348,-151.0,0.00021045,2]
[394776005,1763937038359,-1000.0,0.00021045,2]
[394776007,1763937038368,-305.6191122,0.00021045,2]
[394776009,1763937038379,-1000.0,0.00021045,2]
[394776011,1763937038388,-1000.0,0.00021045,2]
[394776013,1763937038398,-1000.0,0.00021045,2]
[394776015,1763937038407,-1000.0,0.00021045,2]
[394776017,1763937038417,-1000.0,0.00021045,2]
[394776019,1763937038427,-1000.0,0.00021045,2]
[394776021,1763937038436,-1000.0,0.00021045,2]
[394776023,1763937038446,-1000.0,0.00021045,2]
[394776025,1763937038455,-1000.0,0.00021045,2]
[394776027,1763937038465,-1000.0,0.00021045,2]
[394776029,1763937038474,-1000.0,0.00021045,2]
[394776031,1763937038483,-1000.0,0.00021045,2]
[394776033,1763937038493,-1000.0,0.00021045,2]
[394776035,1763937038506,-1000.0,0.00021045,2]
[394776037,1763937038518,-1000.0,0.00021045,2]
[394776040,1763937038527,-1000.0,0.00021045,2]
[394776041,1763937038536,-1000.0,0.00021045,2]
[394776044,1763937038546,-1000.0,0.00021045,2]
[394776046,1763937038556,-1000.0,0.00021045,2]
[394776048,1763937038565,-250.0,0.00021045,2]
[394776050,1763937038575,-250.0,0.00021045,2]
[394776052,1763937038584,-250.0,0.00021045,2]
[394776054,1763937038593,-250.0,0.00021045,2]
[394776056,1763937038603,-250.0,0.00021045,2]
[394776058,1763937038613,-250.0,0.00021045,2]
[394776060,1763937038622,-250.0,0.00021045,2]
[394776062,1763937038631,-250.0,0.00021045,2]
[394776064,1763937038640,-250.0,0.00021045,2]
[394776066,1763937038649,-250.0,0.00021045,2]
[394776068,1763937038659,-250.0,0.00021045,2]
[394776070,1763937038669,-151.0,0.00021064,7]
[394776072,1763937038677,-151.0,0.00021064,7]
[394776074,1763937038687,-151.0,0.00021064,7]
[394776075,1763937038695,-151.0,0.00021064,7]
[394776077,1763937038705,-156.940943,0.00021064,7]
[394776079,1763937038715,-156.940943,0.00021064,7]
[394776081,1763937038723,-156.940943,0.00021064,7]
[394776083,1763937038732,-156.940949,0.00021064,7]
[394776085,1763937038741,-204.0,0.0002112,2]
[394776087,1763937038751,-2617.51388825,0.0002116,2]
[394776089,1763937038761,-2150.0,0.00021191,2]
[394776092,1763937038770,-989.0,0.00021191,2]
[394776093,1763937038779,-630.0,0.00021191,2]
[394776095,1763937038788,-414.0,0.00021191,2]
[394776097,1763937038797,-1425.79686637,0.00021201,2]
[394776099,1763937038807,-1000.0,0.00021204,2]
[394776101,1763937038816,-1000.0,0.00021204,2]
[394776103,1763937038826,-511.67678116,0.00021204,2]
[394776105,1763937038836,-499.58412256,0.00021204,2]
[394776107,1763937038846,-1000.0,0.00021204,2]
[394776109,1763937038860,-1000.0,0.00021204,2]
[394776112,1763937038870,-254.23105707,0.00021309,2]
[394776114,1763937038880,-196.23035295,0.00021309,2]
[394776116,1763937038889,-184.0,0.00021453,120]
[394776118,1763937038898,-1308.93418924,0.00021527,2]
[394776120,1763937038907,-1528.83563223,0.00021527,2]
[394776122,1763937038917,-2000.0,0.00021527,2]
[394776124,1763937038926,-151.0,0.00021612,7]
[394776126,1763937038937,-209.30665,0.00021612,7]
[394776127,1763937038946,-209.30665,0.00021612,7]
[394776129,1763937038956,-209.30665,0.00021612,7]
[394776131,1763937038965,-209.306657,0.00021612,7]
[394776133,1763937038975,-151.0,0.00021612,7]
[394776135,1763937038984,-152.81286195,0.00021612,7]
[394776137,1763937038994,-151.0,0.00021612,7]
[394776139,1763937039003,-151.0,0.00021612,7]
[394776141,1763937039012,-151.0,0.00021702,7]
[394776143,1763937039021,-515.17008264,0.00021751,2]
[394776145,1763937039030,-1283.2314702,0.00021751,2]
[394776148,1763937039040,-1500.0,0.00021751,2]
[394776150,1763937039049,-500.0,0.00021918,2]
[394776151,1763937039060,-155.46188812,0.00021918,2]
[394776154,1763937039070,-500.0,0.00021973,2]
[394776155,1763937039079,-150.0,0.00021973,2]
[394776157,1763937039091,-500.0,0.00022,8]
[394776160,1763937039101,-500.0,0.00022,8]
[394776162,1763937039111,-501.43154471,0.00022,8]
[394776164,1763937039121,-1378.73,0.00022,7]
[394776166,1763937039131,-263444.18,0.00022,2]
[394776167,1763937039140,-151.0,0.00022,7]
[394776170,1763937039150,-151.0,0.00022,7]
[394776172,1763937039160,-6209.98925803,0.00022,5]
[394776173,1763937039172,-151.0,0.00022,7]
[394776176,1763937039181,-2500.0,0.00022075,2]
[394776177,1763937039190,-202.46,0.00022274,2]
[394776179,1763937039200,-1000.0,0.00022384,2]
[394776181,1763937039209,-184.0,0.00022526,120]
[394776183,1763937039218,-1500.0,0.0002255,2]
[394776185,1763937039228,-3000.0,0.00022622,2]
[394776187,1763937039237,-1500.0,0.00022795,2]
[394776188,1763937039246,-7321.59149812,0.00022882,2]
[394776190,1763937039256,-258.0,0.00022959,8]
[394776192,1763937039265,-165.0,0.00023,7]
[394776194,1763937039275,-152.0,0.00023068,2]
[394776196,1763937039283,-231.0,0.0002312,2]
[394776198,1763937039292,-3500.0,0.0002317,2]
[394776200,1763937039302,-1906.52594837,0.00023205,2]
[394776202,1763937039310,-2166.20777208,0.0002347,2]
[394776204,1763937039319,-2166.20777208,0.00023566,2]
[394776206,1763937039328,-153.0,0.00023616,2]
[394776208,1763937039337,-1500.0,0.00023646,2]
[394776210,1763937039346,-2692.26802452,0.00023718,2]
[394776212,1763937039357,-1958.3287355,0.00023774,2]
[394776214,1763937039366,-61680.2636634,0.00023774,2]
[394776216,1763937039375,-652.7762452,0.00023774,2]
[394776218,1763937039385,-199.9898153,0.00023774,2]
[394776220,1763937039394,-3259.10356258,0.00023854,2]
[394776221,1763937039403,-253.07,0.00023865,2]
[394776223,1763937039413,-2166.20777208,0.00024019,2]
[394776225,1763937039422,-165.0,0.00024164,7]
[394776227,1763937039432,-414.0,0.00024191,2]
[394776229,1763937039441,-250.0,0.0002423,2]
[394776231,1763937039451,-3259.10356258,0.00024234,2]
[394776233,1763937039460,-2166.20777208,0.00024293,2]
[394776236,1763937039469,-1000.0,0.00024468,2]
[394776238,1763937039479,-1000.0,0.00024468,2]
[394776239,1763937039487,-1013.44166248,0.00024468,2]
[394776240,1763937039496,-151.0,0.00024468,2]
[394776241,1763937039505,-151.0,0.00024468,2]
[394776242,1763937039514,-151.0,0.00024468,2]
[394776243,1763937039524,-151.0,0.00024468,2]
[394776244,1763937039533,-151.0,0.00024468,2]
[394776245,1763937039543,-151.0,0.00024468,2]
[394776246,1763937039552,-151.0,0.00024468,2]
[394776247,1763937039561,-151.0,0.00024468,2]
[394776248,1763937039570,-151.0,0.00024468,2]
[394776249,1763937039579,-223.09337994,0.00024468,2]
[394776250,1763937039589,-209.0,0.00024603,13]
[394776251,1763937039598,-156238.45298857,0.0002465,2]
[394776252,1763937039608,-512.16392188,0.0002465,2]
[394776253,1763937039617,-151.0,0.0002465,7]
[394776254,1763937039627,-150.0,0.00024658,2]
[394776255,1763937039637,-153.0,0.00024658,2]
[394776256,1763937039646,-153.0,0.00024658,2]
[394776257,1763937039656,-153.0,0.00024658,2]
[394776258,1763937039665,-153.0,0.00024658,2]
[394776259,1763937039675,-153.0,0.00024658,2]
[394776260,1763937039684,-153.0,0.00024658,2]
[394776261,1763937039693,-153.0,0.00024658,2]
[394776263,1763937039703,-153.0,0.00024658,2]
[394776264,1763937039713,-153.0,0.00024658,2]
[394776265,1763937039723,-153.0,0.00024658,2]
[394776266,1763937039732,-153.0,0.00024658,2]
[394776267,1763937039742,-153.0,0.00024658,2]
[394776268,1763937039751,-153.0,0.00024658,2]
[394776269,1763937039761,-153.0,0.00024658,2]
[394776270,1763937039769,-153.0,0.00024658,2]
[394776271,1763937039779,-153.0,0.00024658,2]
[394776272,1763937039788,-153.0,0.00024658,2]
[394776273,1763937039797,-153.0,0.00024658,2]
[394776274,1763937039806,-153.0,0.00024658,2]
[394776275,1763937039815,-153.0,0.00024658,2]
[394776277,1763937039824,-153.0,0.00024658,2]
[394776278,1763937039834,-153.0,0.00024658,2]
[394776280,1763937039843,-153.0,0.00024658,2]
[394776282,1763937039852,-153.0,0.00024658,2]
[394776284,1763937039861,-153.0,0.00024658,2]
[394776286,1763937039871,-153.0,0.00024658,2]
[394776288,1763937039879,-153.0,0.00024658,2]
[394776290,1763937039889,-153.0,0.00024658,2]
[394776292,1763937039898,-153.0,0.00024658,2]
[394776294,1763937039907,-153.0,0.00024658,2]
[394776296,1763937039917,-153.0,0.00024658,2]
[394776298,1763937039927,-153.0,0.00024658,2]
[394776300,1763937039936,-153.0,0.00024658,2]
[394776302,1763937039945,-153.0,0.00024658,2]
[394776304,1763937039954,-153.0,0.00024658,2]
[394776306,1763937039964,-153.0,0.00024658,2]
[394776308,1763937039974,-153.0,0.00024658,2]
[394776310,1763937039983,-153.0,0.00024658,2]
[394776312,1763937039992,-153.0,0.00024658,2]
[394776314,1763937040001,-153.0,0.00024658,2]
[394776316,1763937040010,-153.0,0.00024658,2]
[394776318,1763937040019,-153.0,0.00024658,2]
[394776320,1763937040028,-153.0,0.00024658,2]
[394776322,1763937040037,-153.0,0.00024658,2]
[394776324,1763937040046,-153.0,0.00024658,2]
[394776326,1763937040054,-153.0,0.00024658,2]
[394776328,1763937040063,-153.0,0.00024658,2]
[394776330,1763937040071,-153.0,0.00024658,2]
[394776332,1763937040081,-200.0,0.00024658,2]
[394776334,1763937040095,-380.0,0.00024658,2]
[394776336,1763937040104,-163.132723,0.00024658,7]
[394776338,1763937040113,-327.947358,0.00024658,7]
[394776340,1763937040122,-327.947358,0.00024658,7]
[394776342,1763937040133,-327.947358,0.00024658,7]
[394776344,1763937040142,-327.947358,0.00024658,7]
[394776346,1763937040151,-327.947358,0.00024658,7]
[394776348,1763937040161,-327.947358,0.00024658,7]
[394776350,1763937040172,-327.947358,0.00024658,7]
[394776353,1763937040182,-327.947358,0.00024658,7]
[394776355,1763937040192,-327.947358,0.00024658,7]
[394776357,1763937040201,-327.947358,0.00024658,7]
[394776359,1763937040210,-327.947358,0.00024658,7]
[394776361,1763937040219,-327.947358,0.00024658,7]
[394776363,1763937040227,-327.947358,0.00024658,7]
[394776365,1763937040236,-327.947358,0.00024658,7]
[394776366,1763937040245,-327.947358,0.00024658,7]
[394776368,1763937040255,-327.947358,0.00024658,7]
[394776371,1763937040263,-327.947358,0.00024658,7]
[394776372,1763937040272,-327.947358,0.00024658,7]
[394776374,1763937040282,-327.947358,0.00024658,7]
[394776376,1763937040291,-327.947354,0.00024658,7]
[394776378,1763937040299,-703.0,0.00024658,2]
[394776380,1763937040308,-300.0,0.00024673,2]
[394776383,1763937040320,-150.0,0.00024673,2]
[394776384,1763937040330,-2632.41615154,0.000247,2]
[394776387,1763937040339,-1500.0,0.00024742,2]
[394776388,1763937040348,-16767.87375348,0.00024774,2]
[394776390,1763937040358,-703.0,0.00024795,2]
[394776393,1763937040367,-1755.01113433,0.000248,4]
[394776395,1763937040376,-263444.18,0.000248,2]
[394776397,1763937040385,-286732.25471067,0.000248,2]
[394776441,1763937040789,-266.34903254,0.000248,2]
[394776572,1763937042042,-353.29325365,0.0001706,2]
[394776573,1763937042051,-81.83799163,0.00019883,2]
[394776574,1763937042062,-418.16200837,0.00019883,2]
[394776575,1763937042071,-1038.08386182,0.00020431,2]
[394776576,1763937042080,-261.5,0.00020567,15]
[394776577,1763937042090,-84150.43721992,0.000248,2]
[394776593,1763937042296,-43444.67152387,0.000248,2]
[394776595,1763937042307,-205.380066,0.000248,7]
[394776597,1763937042316,-11480.65274943,0.00024832,2]
[394776599,1763937042325,-503.8062005,0.00024858,2]
[394776601,1763937042335,-300.0,0.00024873,2]
[394776603,1763937042344,-166.67,0.000249,14]
[394776605,1763937042353,-638737.182966,0.000249,2]
[394776607,1763937042365,-1045.490183,0.0002498,5]
[394776609,1763937042374,-1081.88706448,0.00025,2]
[394776611,1763937042383,-1988.44917374,0.00025,2]
[394776613,1763937042392,-2665.78762664,0.00025,2]
[394776615,1763937042403,-10364.0,0.00025,2]
[394776617,1763937042412,-150.0,0.00025,2]
[394776619,1763937042421,-668.73220801,0.00025,2]
[394776621,1763937042431,-600.0,0.00025,2]
[394776623,1763937042440,-755.80479624,0.00025,2]
[394776625,1763937042450,-121605.10439268,0.00025,5]
[394776627,1763937042459,-1000.0,0.00025,14]
[394776629,1763937042468,-50908.5426295,0.00025,15]
[394776631,1763937042478,-1200.0,0.00025,5]
[394776633,1763937042487,-1523.14751819,0.00025,2]
[394776635,1763937042496,-164.0,0.00025,5]
[394776637,1763937042506,-815.60745183,0.00025,2]
[394776639,1763937042515,-1271.15789434,0.00025,2]
[394776641,1763937042524,-835.73066757,0.00025,30]
[394776643,1763937042533,-300.0,0.00025,30]
[394776645,1763937042543,-341.16951677,0.00025,2]
[394776647,1763937042552,-500.0,0.00025,7]
[394776649,1763937042561,-23475.2819069,0.00025,5]
[394776651,1763937042570,-528.89555737,0.00025,3]
[394776653,1763937042578,-262033.98873634,0.00025,2]
[394777010,1763937046063,-1007.0182478,0.00017989,2]
[394777201,1763937295114,169.41148258,0.00010061,2]
[394777202,1763937479482,279.44,0.00010961,2]